bitfinex-derivatives/quotes_ETHF0:USTF0_20240925
["timestamp","ask_amount","ask_price","bid_price","bid_amount"]
[1727259113410,0.9515,2627.3,2626.9,10.60840468]
[1727259113610,0.38062,2627.1,2627.0,0.4004]
[1727259117516,1.33219,2627.1,2627.0,0.4004]
[1727259118111,0.38062,2627.1,2627.0,0.4004]
[1727259120419,1.33219,2627.1,2627.0,0.4004]
[1727259121116,1.33224,2627.0,2626.9,7.19550468]
[1727259121423,1.33224,2627.0,2626.7,0.3689]
[1727259121424,5.55911425,2627.0,2626.7,0.3689]
[1727259121607,1.48800362,2626.8,2626.7,0.74958]
[1727259122012,2.73196425,2627.0,2626.7,0.74957]
[1727259122013,1.48800362,2626.9,2626.7,0.74957]
[1727259122213,1.48800362,2626.8,2626.7,0.74957]
[1727259122414,1.48800362,2626.8,2626.7,3.13957]
[1727259122618,1.48800362,2626.9,2626.8,0.38067]
[1727259122812,1.48818388,2626.9,2626.8,0.38067]
[1727259123125,2.73196425,2627.0,2626.8,0.38067]
[1727259123718,2.73196425,2627.0,2626.9,2.39]
[1727259124409,0.74855,2627.0,2626.9,2.39]
[1727259125117,2.73351,2627.0,2626.9,2.39]
[1727259125315,0.74855,2627.0,2626.9,2.39]
[1727259127331,3.20333699,2627.0,2626.9,2.39]
[1727259128522,0.74855,2627.0,2626.9,2.39]
[1727259130024,0.3679,2627.0,2626.7,2.7589]
[1727259130324,1.31951,2627.0,2626.7,2.7589]
[1727259130526,1.55866118,2627.0,2626.7,2.7589]
[1727259130725,0.38067,2626.8,2626.7,2.7589]
[1727259132012,0.38066,2626.9,2626.7,3.13957]
[1727259132216,0.3679,2627.0,2626.7,2.7589]
[1727259132416,0.38066,2626.9,2626.7,3.13958]
[1727259133226,0.38066,2626.9,2626.7,2.7589]
[1727259133428,0.38066,2626.9,2626.7,3.13958]
[1727259134133,0.38066,2626.9,2626.7,3.13957]
[1727259134623,0.38066,2626.9,2626.7,2.7589]
[1727259135227,0.38066,2626.9,2626.7,3.13958]
[1727259135228,1.87095316,2626.9,2626.7,3.13958]
[1727259135428,1.49029316,2626.9,2626.8,0.38067]
[1727259135616,1.87095316,2626.9,2626.7,3.13958]
[1727259135815,1.49029316,2626.9,2626.8,0.38067]
[1727259136428,1.49029316,2626.9,2626.8,1.48067]
[1727259136628,3.69429439,2627.0,2626.8,1.48067]
[1727259136830,3.69429439,2627.0,2626.9,0.38065]
[1727259137030,2.94574439,2627.0,2626.9,0.38065]
[1727259137225,2.94574439,2627.0,2626.8,5.36591437]
[1727259137226,3.32638439,2627.0,2626.8,5.36591437]
[1727259137729,3.32638439,2627.0,2626.8,5.74656437]
[1727259138135,3.32638439,2627.0,2626.9,0.38065]
[1727259138332,3.43670179,2627.0,2626.9,0.38065]
[1727259138522,3.58843,2627.1,2627.0,0.38064]
[1727259138717,3.58843,2627.1,2627.0,1.48064]
[1727259138930,6.58193072,2627.1,2627.0,1.48064]
[1727259139335,7.02513179,2627.1,2627.0,1.48064]
[1727259140424,6.64450179,2627.1,2627.0,1.48064]
[1727259140931,7.02512179,2627.1,2627.0,1.1]
[1727259141432,4.53999,2627.1,2627.0,1.1]
[1727259142532,3.2078,2627.1,2627.0,1.48064]
[1727259142722,3.58842,2627.1,2627.0,1.1]
[1727259145933,2.9961946,2627.4,2627.0,18.15795368]
[1727259146132,2.9961946,2627.4,2627.3,4.20429511]
[1727259146133,1.49776616,2627.4,2627.3,4.20429511]
[1727259146338,1.49776616,2627.4,2627.3,1.1]
[1727259146339,1.9973244,2627.4,2627.3,1.1]
[1727259146528,0.38057,2627.5,2627.3,5.90825368]
[1727259146838,1.9973244,2627.5,2627.3,5.90825368]
[1727259148129,2.3778944,2627.5,2627.3,5.90825368]
[1727259148524,1.9973244,2627.5,2627.3,5.90825368]
[1727259149443,1.9973244,2627.5,2627.3,6.28884368]
[1727259149646,2.3747244,2627.6,2627.4,0.38058]
[1727259149940,1.9973244,2627.9,2627.5,1.1]
[1727259150135,1.9973244,2627.9,2627.7,1.1]
[1727259150335,1.9973244,2627.9,2627.8,0.3812]
[1727259150535,0.7462,2628.1,2627.8,5.27140392]
[1727259150536,1.9973244,2628.0,2627.8,5.27140392]
[1727259150733,1.9973244,2628.0,2627.9,1.1]
[1727259151138,1.9973244,2628.0,2627.9,5.19139215]
[1727259152441,1.9973244,2628.0,2627.9,6.47139215]
[1727259152936,1.9973244,2628.0,2627.9,6.85190215]
[1727259153149,1.3927244,2628.2,2627.9,20.62979215]
[1727259153351,0.3996,2628.5,2628.1,2.38]
[1727259153537,0.38045,2628.3,2628.1,0.3885]
[1727259153732,0.3996,2628.5,2628.2,4.6026229]
[1727259153937,0.38044,2628.4,2628.3,2.38]
[1727259154839,0.3996,2628.5,2628.1,2.38]
[1727259155035,0.3996,2628.5,2628.3,2.38]
[1727259155235,0.38044,2628.4,2628.3,2.38]
[1727259155438,0.38044,2628.4,2628.0,4.11110592]
[1727259155738,0.38045,2628.4,2628.2,2.38]
[1727259155940,0.3996,2628.5,2628.2,2.38]
[1727259155941,0.38045,2628.3,2628.2,2.38]
[1727259156335,0.38044,2628.4,2628.2,2.38]
[1727259156535,0.3996,2628.5,2628.2,2.38]
[1727259156842,0.38045,2628.3,2628.2,2.38]
[1727259157044,0.3996,2628.5,2628.2,2.38]
[1727259157445,0.3996,2628.5,2628.4,2.38]
[1727259159141,0.3771,2628.6,2628.4,2.76044]
[1727259159447,1.12878,2628.8,2628.5,3.2078]
[1727259159750,1.12878,2628.8,2628.6,2.38]
[1727259159944,0.38039,2628.7,2628.6,2.38]
[1727259160245,1.12879,2628.8,2628.6,2.38]
[1727259161247,0.38039,2628.7,2628.6,2.38]
[1727259161448,1.12879,2628.8,2628.6,2.38]
[1727259161643,0.38039,2628.7,2628.6,2.38]
[1727259161949,0.443526,2628.7,2628.6,2.38]
[1727259162550,0.38039,2628.7,2628.6,2.38]
[1727259162745,0.44352666,2628.7,2628.6,2.38]
[1727259163248,0.06313701,2628.7,2628.6,2.38]
[1727259163946,0.44352701,2628.7,2628.6,2.38]
[1727259165452,0.06313701,2628.7,2628.6,2.38]
[1727259165647,0.44352323,2628.7,2628.6,2.38]
[1727259166340,0.06313239,2628.7,2628.6,2.38]
[1727259166545,0.38039,2628.7,2628.6,2.38]
[1727259166847,0.06313523,2628.7,2628.6,2.38]
[1727259167550,3.5923,2629.0,2628.7,0.38038]
[1727259167551,3.58816,2629.0,2628.7,0.38038]
[1727259167753,0.38035,2629.0,2628.9,2.38]
[1727259167945,0.44348014,2629.0,2628.9,2.38]
[1727259168651,0.44348014,2629.0,2628.9,2.7737]
[1727259169555,0.38033,2629.2,2628.9,11.22316004]
[1727259169758,0.38032,2629.2,2629.1,2.38]
[1727259169954,0.38032,2629.2,2629.1,6.1832]
[1727259170152,0.38032,2629.2,2629.1,6.57107604]
[1727259170660,0.0376832,2629.3,2629.1,6.57107604]
[1727259170661,0.4179932,2629.3,2629.1,6.57107604]
[1727259171051,0.0376832,2629.3,2629.1,6.95140604]
[1727259171755,0.4179932,2629.3,2629.1,6.57107604]
[1727259173356,0.4179932,2629.3,2629.1,10.15919604]
[1727259173357,0.0376832,2629.3,2629.1,10.15919604]
[1727259173553,0.0376832,2629.3,2629.1,6.57107604]
[1727259173755,0.4179932,2629.3,2629.1,6.57107604]
[1727259174448,0.0376832,2629.3,2629.1,10.37427604]
[1727259174649,0.0376832,2629.3,2629.2,7.39132]
[1727259175151,0.0376832,2629.3,2629.2,11.70793017]
[1727259175355,0.38025,2629.7,2629.4,0.38029]
[1727259175560,0.38025,2629.7,2629.5,3.1721]
[1727259175860,0.38025,2629.7,2629.5,7.48871017]
[1727259176161,0.38026,2629.7,2629.5,14.49971017]
[1727259176351,4.83811739,2630.0,2629.5,10.69651017]
[1727259176546,0.38022,2629.9,2629.8,2.38]
[1727259180256,1.1703,2630.0,2629.8,2.38]
[1727259180460,2.47749378,2630.2,2629.8,2.76023]
[1727259180767,0.3802,2630.1,2630.0,2.38]
[1727259181370,0.38018,2630.2,2630.0,2.38]
[1727259181558,0.38019,2630.1,2630.0,2.38]
[1727259181758,1.1578,2630.3,2630.0,2.38]
[1727259181955,1.1578,2630.3,2630.2,2.38]
[1727259182657,0.7861,2630.3,2630.2,2.38]
[1727259184258,1.16441,2630.7,2630.2,10.3371404]
[1727259184463,1.16441,2630.7,2630.6,2.38]
[1727259184464,0.7843,2630.7,2630.6,2.38]
[1727259185260,0.7843,2630.7,2630.4,2.38]
[1727259185666,0.7843,2630.7,2630.6,2.38]
[1727259186266,0.38004,2631.2,2630.6,16.52112926]
[1727259186577,3.2968,2631.4,2631.1,2.38]
[1727259186578,1.18032,2631.3,2631.1,2.38]
[1727259186777,0.8003,2631.3,2631.1,2.38]
[1727259187074,0.37997,2631.7,2631.2,4.13257685]
[1727259187272,0.8003,2631.7,2631.6,2.38]
[1727259187472,1.18026,2631.7,2631.6,2.38]
[1727259187677,4.6003,2631.7,2631.6,2.38]
[1727259187976,4.98026,2631.7,2631.6,2.38]
[1727259188675,0.8003,2631.7,2631.6,2.38]
[1727259189275,3.2078,2631.8,2631.6,6.18]
[1727259189573,3.58769,2632.2,2631.7,3.8]
[1727259189872,3.2078,2632.2,2632.1,2.38]
[1727259190068,3.58769,2632.2,2632.1,2.38]
[1727259190269,3.58769,2632.2,2631.9,2.38]
[1727259190270,3.2078,2632.2,2631.9,2.38]
[1727259190471,0.37994,2631.9,2631.7,2.7756]
[1727259191165,0.37994,2631.8,2631.7,2.7756]
[1727259191373,3.5895,2632.2,2631.7,2.7756]
[1727259191374,0.37994,2631.9,2631.7,2.7756]
[1727259191774,3.5895,2632.2,2631.3,3.5749]
[1727259191775,3.5895,2632.2,2631.5,2.38]
[1727259191975,0.37993,2631.9,2631.8,4.2027999]
[1727259192173,0.37996,2631.7,2631.5,6.5827999]
[1727259192373,0.37996,2631.7,2631.5,2.38]
[1727259192684,0.4025,2631.8,2631.6,4.2027999]
[1727259192883,0.78244,2631.8,2631.7,2.38]
[1727259193575,0.4025,2631.8,2631.7,2.38]
[1727259193778,0.78244,2631.8,2631.7,2.38]
[1727259194774,0.78244,2631.8,2631.5,2.38]
[1727259194775,0.37996,2631.7,2631.5,2.38]
[1727259195078,0.3998,2631.7,2631.5,2.38]
[1727259195379,0.77976,2631.7,2631.5,2.38]
[1727259195570,0.3998,2631.7,2631.5,2.38]
[1727259195766,0.94978,2632.1,2631.5,2.38]
[1727259195969,0.37994,2631.9,2631.8,2.38]
[1727259196184,0.7858,2632.0,2631.8,2.38]
[1727259196383,1.16572,2632.0,2631.8,2.38]
[1727259196877,3.26329378,2632.0,2631.8,2.38]
[1727259197077,3.64321378,2632.0,2631.8,2.38]
[1727259197281,3.26329378,2632.0,2631.8,2.38]
[1727259197577,3.26329378,2632.0,2631.3,3.9483]
[1727259197578,0.37997,2631.7,2631.5,2.38]
[1727259197778,0.37997,2631.7,2631.3,3.9483]
[1727259197779,1.96704041,2631.7,2631.3,3.9483]
[1727259197981,4.53777,2631.5,2631.4,4.01683778]
[1727259198189,3.2078,2631.5,2630.9,0.3773]
[1727259198387,0.38005,2631.1,2631.0,2.38]
[1727259198580,2.34741424,2631.1,2631.0,2.38]
[1727259198781,2.4592053,2631.3,2631.0,2.38]
[1727259198984,0.38005,2631.1,2631.0,2.38]
[1727259199184,4.1837353,2631.4,2631.0,2.38]
[1727259199483,3.2078,2631.2,2630.7,0.3986]
[1727259199684,0.3801,2630.8,2630.5,5.5878]
[1727259199884,2.4592053,2630.9,2630.6,0.38011]
[1727259200077,2.4592053,2630.9,2630.7,2.38]
[1727259200390,2.8392653,2631.0,2630.7,2.38]
[1727259200679,2.4592053,2631.0,2630.9,2.38]
[1727259200886,2.8392653,2631.0,2630.9,2.38]
[1727259201081,2.4592053,2631.0,2630.9,2.38]
[1727259201287,2.4592053,2631.2,2630.9,6.88509179]
[1727259201485,2.8392053,2631.4,2631.1,5.5878]
[1727259201779,2.8281053,2631.5,2631.1,5.96784]
[1727259201984,0.38001,2631.4,2631.2,2.7616]
[1727259202186,0.38002,2631.3,2631.2,2.7616]
[1727259202374,2.8281053,2631.5,2631.2,2.7616]
[1727259202375,0.38001,2631.4,2631.2,2.7616]
[1727259202577,6.2592053,2631.4,2631.1,3.2078]
[1727259202779,0.38004,2631.2,2631.0,2.38]
[1727259203073,0.38006,2631.0,2630.8,2.7616]
[1727259203480,2.8392653,2631.0,2630.8,2.7616]
[1727259203991,0.76826,2631.0,2630.8,2.7616]
[1727259204191,0.38007,2630.9,2630.8,2.7616]
[1727259204488,0.76826,2631.0,2630.8,2.38]
[1727259204690,0.3882,2631.0,2630.8,2.38]
[1727259204885,0.3853,2631.1,2630.8,2.38]
[1727259205086,0.76822,2631.3,2631.0,2.38]
[1727259205291,0.3882,2631.3,2631.2,2.38]
[1727259205696,0.76822,2631.3,2631.2,2.38]
[1727259206288,0.38003,2631.2,2631.1,0.3825]
[1727259206490,4.56903,2631.3,2631.0,2.38]
[1727259206688,0.38003,2631.2,2631.0,2.38]
[1727259207291,0.76822,2631.3,2631.0,2.38]
[1727259207797,0.38004,2631.2,2631.0,2.38]
[1727259208092,0.38004,2631.2,2630.9,0.3794]
[1727259208396,0.95008,2631.2,2630.7,0.373]
[1727259208596,0.38007,2631.0,2630.7,0.7524]
[1727259208898,0.95008,2631.2,2630.8,7.05154585]
[1727259208899,3.58783,2631.2,2630.8,7.05154585]
[1727259209196,3.58783,2631.2,2631.0,2.38]
[1727259209586,3.2078,2631.2,2631.0,2.38]
[1727259209797,0.3853,2631.4,2631.0,2.38]
[1727259210098,0.3853,2631.4,2631.1,0.764]
[1727259210389,0.3853,2631.4,2631.2,2.76003]
[1727259210590,0.3853,2631.4,2631.2,3.15123]
[1727259210796,0.3853,2631.4,2631.2,2.7712]
[1727259211394,0.3853,2631.4,2631.2,3.15123]
[1727259211696,0.7653,2631.4,2631.2,2.7712]
[1727259211893,2.8445053,2631.4,2631.2,3.15122]
[1727259212091,0.38002,2631.3,2631.2,2.7712]
[1727259212491,2.4592053,2631.3,2631.2,0.3912]
[1727259213304,2.4592053,2631.4,2631.2,3.15123]
[1727259213505,2.4592053,2631.3,2631.2,3.15123]
[1727259214815,6.2039946,2631.5,2631.2,3.15123]
[1727259215109,6.5839946,2631.5,2631.2,2.7712]
[1727259215313,6.5839946,2631.5,2631.2,3.15123]
[1727259216102,0.38001,2631.4,2631.2,2.7712]
[1727259216507,3.3762046,2631.4,2631.2,2.7712]
[1727259216708,3.3762046,2631.4,2631.2,3.15123]
[1727259216916,2.9961946,2631.4,2631.2,3.15123]
[1727259217102,3.3761946,2631.4,2631.2,2.7712]
[1727259217305,0.38003,2631.2,2631.1,0.3748]
[1727259218110,3.3762246,2631.2,2631.1,0.3748]
[1727259218306,3.3762246,2631.2,2630.7,3.5879]
[1727259218307,0.38005,2631.1,2630.7,3.5879]
[1727259218504,4.1247446,2631.1,2630.7,3.6083]
[1727259218706,2.9961946,2631.0,2630.8,2.76008]
[1727259219003,0.7485,2631.1,2630.8,2.76008]
[1727259219205,1.12855,2631.1,2630.8,2.76008]
[1727259220006,0.7485,2631.1,2630.8,2.76008]
[1727259220307,1.12855,2631.1,2630.8,2.76008]
[1727259220704,0.95016,2631.0,2630.7,3.6083]
[1727259221010,0.38008,2630.9,2630.7,0.4005]
[1727259222011,3.22346756,2631.1,2630.7,0.4005]
[1727259222402,2.53805027,2631.0,2630.7,0.4005]
[1727259222611,0.44316271,2630.9,2630.7,0.4005]
[1727259222915,0.06308271,2630.8,2630.7,0.4005]
[1727259224714,0.3801,2630.7,2630.4,3.5853]
[1727259225015,0.38015,2630.4,2630.3,0.3664]
[1727259225205,0.38015,2630.4,2630.0,3.2078]
[1727259225206,0.95042,2630.3,2630.0,3.5719]
[1727259225406,0.38019,2630.1,2630.0,0.3641]
[1727259225716,0.44329189,2630.1,2630.0,0.3641]
[1727259226223,3.920174,2630.1,2630.0,0.3641]
[1727259226515,3.539984,2630.1,2630.0,0.3641]
[1727259227315,3.920174,2630.1,2630.0,0.3641]
[1727259228015,8.099884,2630.1,2629.8,0.3664]
[1727259228212,2.98020542,2629.9,2629.8,0.3664]
[1727259228409,3.04330731,2629.9,2629.8,0.3664]
[1727259229320,3.04330941,2629.9,2629.8,0.3664]
[1727259229509,3.04330941,2629.9,2629.8,0.74663]
[1727259229711,3.04330941,2629.9,2629.8,0.3664]
[1727259230012,3.04330941,2629.9,2629.8,0.74663]
[1727259230317,3.42352941,2629.9,2629.8,0.3664]
[1727259230524,2.98020542,2629.9,2629.8,0.3664]
[1727259231113,3.36042542,2629.9,2629.8,0.3664]
[1727259231813,0.38022,2629.9,2629.8,0.3664]
[1727259232014,0.38023,2629.8,2629.7,2.7781]
[1727259232218,3.36039551,2629.8,2629.7,2.7781]
[1727259233116,3.36039551,2629.8,2629.7,3.15835]
[1727259233319,0.3816,2629.8,2629.7,2.7781]
[1727259235120,0.3816,2629.8,2629.7,3.15835]
[1727259235511,0.38022,2629.9,2629.7,3.15835]
[1727259235819,0.38022,2629.9,2629.8,0.3644]
[1727259236725,1.1469,2630.1,2629.8,0.3644]
[1727259236726,0.38021,2630.0,2629.8,0.3644]
[1727259236911,0.38025,2629.7,2629.6,3.2078]
[1727259237423,0.38027,2629.6,2629.4,0.3859]
[1727259237620,0.38027,2629.6,2629.2,3.2078]
[1727259237621,0.38029,2629.4,2629.2,3.2078]
[1727259238113,0.38031,2629.3,2629.2,3.2078]
[1727259238314,1.33108,2629.3,2629.2,3.2078]
[1727259238524,0.38033,2629.2,2628.9,3.2078]
[1727259238718,0.3772,2629.2,2628.9,3.97405]
[1727259238918,0.3772,2629.2,2628.9,10.10843474]
[1727259239322,0.75419,2629.5,2629.1,0.38033]
[1727259239511,1.13139,2629.5,2629.1,2.38]
[1727259239823,1.13139,2629.5,2629.2,0.38031]
[1727259240015,0.38029,2629.4,2629.2,0.38031]
[1727259240423,0.7511,2629.5,2629.2,3.58811]
[1727259240619,1.13139,2629.5,2629.2,3.58811]
[1727259240922,1.13139,2629.5,2629.3,2.38]
[1727259240923,0.3772,2629.5,2629.3,2.38]
[1727259241118,0.75749,2629.5,2629.3,3.1356]
[1727259241625,0.75749,2629.5,2629.3,3.5159]
[1727259242025,0.3772,2629.5,2629.3,3.1356]
[1727259242420,0.3772,2629.5,2629.4,0.38029]
[1727259242625,0.3915,2629.6,2629.4,0.38029]
[1727259243026,0.77176,2629.6,2629.4,0.38029]
[1727259243323,0.77176,2629.6,2629.3,3.51589]
[1727259243518,0.77176,2629.6,2629.4,0.38029]
[1727259243721,0.77176,2629.6,2629.3,3.5159]
[1727259244026,3.2078,2629.7,2629.5,0.38027]
[1727259244215,0.3964,2629.8,2629.5,3.2078]
[1727259244216,0.77664,2629.8,2629.5,3.2078]
[1727259244419,0.7857,2629.9,2629.7,0.38025]
[1727259244420,0.3897,2629.9,2629.7,0.38025]
[1727259244623,0.76992,2629.9,2629.8,0.3729]
[1727259245725,0.76992,2629.9,2629.5,3.2078]
[1727259245726,0.38025,2629.7,2629.5,3.2078]
[1727259245918,0.3897,2629.9,2629.4,0.4]
[1727259246120,0.38027,2629.6,2629.4,0.4]
[1727259246424,0.3761,2629.5,2629.0,3.96644]
[1727259246621,0.7529,2629.4,2629.0,4.36644]
[1727259246923,0.3726,2629.4,2629.0,3.9861]
[1727259247125,0.3761,2629.5,2629.1,6.44759907]
[1727259247325,0.3761,2629.5,2629.1,6.82792907]
[1727259247627,0.3761,2629.5,2629.2,0.38032]
[1727259247628,0.75639,2629.5,2629.2,0.38032]
[1727259247923,0.75639,2629.5,2629.1,6.44759907]
[1727259247924,0.3803,2629.4,2629.1,2.76033]
[1727259248133,0.75638,2629.5,2629.2,0.38032]
[1727259248434,0.75638,2629.5,2629.3,0.4]
[1727259248620,1.11836,2629.7,2629.3,0.4]
[1727259248821,0.75286,2629.7,2629.5,0.38027]
[1727259249222,0.75286,2629.7,2629.4,3.16028]
[1727259249522,0.75286,2629.7,2629.4,3.16029]
[1727259249523,2.47669982,2629.5,2629.4,3.16029]
[1727259249721,2.47669982,2629.7,2629.6,0.38026]
[1727259250028,0.38022,2629.9,2629.7,0.38025]
[1727259250029,2.47669982,2629.8,2629.7,0.38025]
[1727259250932,2.85692982,2629.8,2629.7,0.38025]
[1727259251131,2.47669982,2629.8,2629.7,0.38025]
[1727259251330,2.85692982,2629.8,2629.7,0.38025]
[1727259251531,21.80022837,2629.8,2628.5,0.3752]
[1727259251730,0.38041,2628.6,2628.5,0.3752]
[1727259251938,0.38041,2628.6,2628.5,4.77555104]
[1727259252123,2.47720133,2628.8,2628.5,0.3752]
[1727259252431,2.47720133,2628.8,2628.6,0.3804]
[1727259252432,2.85759133,2628.8,2628.6,0.3804]
[1727259252632,0.06313814,2628.7,2628.6,0.3804]
[1727259252821,0.06313814,2628.7,2628.5,0.3752]
[1727259252822,0.06313814,2628.7,2628.5,0.75561]
[1727259253228,0.06313814,2628.7,2628.6,0.38041]
[1727259254023,0.44352814,2628.7,2628.5,0.75561]
[1727259254225,2.85759133,2628.8,2628.6,0.3804]
[1727259254423,0.06313868,2628.7,2628.6,0.3804]
[1727259254830,0.44352868,2628.7,2628.5,0.75561]
[1727259255131,2.47720133,2628.8,2628.6,0.3804]
[1727259255332,0.44353922,2628.7,2628.5,0.75561]
[1727259255522,0.3804,2628.7,2628.5,0.75561]
[1727259256124,4.17503133,2628.9,2628.5,0.75561]
[1727259256336,0.06314058,2628.8,2628.5,0.75561]
[1727259256629,0.38041,2628.6,2628.5,0.75561]
[1727259258018,1.69783,2628.9,2628.6,0.38041]
[1727259258019,0.3804,2628.7,2628.6,0.38041]
[1727259258233,0.44353903,2628.7,2628.5,0.3752]
[1727259258434,1.69783,2628.9,2628.5,0.75562]
[1727259258435,0.38041,2628.6,2628.5,0.75562]
[1727259261233,0.38041,2628.6,2628.5,0.3752]
[1727259261431,0.38044,2628.4,2628.3,3.2078]
[1727259261733,0.38046,2628.3,2628.2,0.38046]
[1727259262028,0.38046,2628.3,2628.1,0.3948]
[1727259262029,0.95095,2628.8,2628.1,5.08977985]
[1727259262236,0.38046,2628.3,2628.2,0.38046]
[1727259264028,0.38046,2628.2,2628.1,5.47024985]
[1727259264543,0.38046,2628.3,2628.2,0.38046]
[1727259265035,0.38046,2628.2,2628.1,5.47024985]
[1727259266135,0.7496,2628.4,2628.1,5.08977985]
[1727259266439,0.38046,2628.2,2628.1,5.47024985]
[1727259267531,0.38046,2628.3,2628.2,0.38046]
[1727259267837,0.38046,2628.2,2628.1,8.67804985]
[1727259268032,0.38046,2628.3,2628.2,0.38046]
[1727259268234,0.38046,2628.2,2628.1,8.67804985]
[1727259268739,0.38046,2628.3,2628.2,0.38046]
[1727259269043,0.38046,2628.3,2628.1,8.29757985]
[1727259269240,0.38046,2628.2,2628.1,8.67804985]
[1727259269448,0.38046,2628.2,2626.7,4.89649511]
[1727259269449,0.95131,2627.8,2627.7,3.2078]
[1727259269638,0.38059,2627.3,2627.2,0.63354345]
[1727259269834,0.38059,2627.3,2627.2,0.3905]
[1727259270033,0.38059,2627.3,2627.2,0.7537]
[1727259270428,2.48042722,2627.6,2627.2,0.7537]
[1727259270733,2.48042722,2627.6,2627.2,7.47921219]
[1727259270932,2.86098722,2627.6,2627.3,0.38058]
[1727259271329,0.38056,2627.6,2627.3,0.38058]
[1727259271734,0.38056,2627.6,2627.4,0.38058]
[1727259272443,0.38057,2627.5,2627.3,0.38059]
[1727259273039,0.38057,2627.5,2627.2,7.47921219]
[1727259273247,0.38057,2627.5,2627.4,0.38058]
[1727259273634,0.38056,2627.6,2627.5,0.38056]
[1727259273843,0.38057,2627.5,2627.4,0.38058]
[1727259274139,0.401,2627.7,2627.4,0.38057]
[1727259274342,0.38057,2627.5,2627.4,0.38057]
[1727259275246,0.401,2627.7,2627.4,0.38057]
[1727259275641,0.38057,2627.5,2627.4,0.38057]
[1727259275834,0.46946,2628.3,2628.0,0.38049]
[1727259276034,3.2078,2628.8,2628.1,0.9512]
[1727259276236,0.38043,2628.5,2628.2,0.3781]
[1727259276543,0.95099,2628.7,2628.2,4.94036]
[1727259276544,0.38044,2628.4,2628.2,4.94036]
[1727259277736,0.3991,2628.5,2628.3,0.38044]
[1727259277945,0.3991,2628.5,2628.2,4.5599]
[1727259278132,0.77953,2628.5,2628.3,0.38044]
[1727259278335,0.77953,2628.5,2628.3,0.38045]
[1727259279143,0.38044,2628.4,2628.2,4.94035]
[1727259279450,0.38046,2628.2,2628.1,0.3825]
[1727259279633,1.35018,2628.5,2628.0,3.58829]
[1727259279634,1.34881,2628.4,2628.0,3.58829]
[1727259279842,0.38048,2628.2,2628.0,0.38049]
[1727259280042,0.38048,2628.2,2627.9,0.3805]
[1727259280239,0.38048,2628.2,2628.0,0.38049]
[1727259280440,0.3867,2628.3,2627.9,4.33591032]
[1727259281351,1.33784,2628.3,2627.9,4.33591032]
[1727259281641,0.38049,2628.0,2627.9,4.33591032]
[1727259281847,0.38049,2628.1,2627.9,4.33591032]
[1727259282842,0.38049,2628.1,2627.9,7.54371032]
[1727259283049,0.38049,2628.1,2627.9,7.92422032]
[1727259283644,0.38049,2628.1,2627.9,7.54371032]
[1727259284044,1.33785,2628.3,2627.9,7.54371032]
[1727259284442,0.38047,2628.2,2627.9,7.54371032]
[1727259284748,0.38047,2628.2,2627.9,7.92422032]
[1727259285351,0.3867,2628.3,2628.0,0.38049]
[1727259285551,0.76715,2628.3,2628.0,0.38049]
[1727259286445,0.3867,2628.3,2628.0,0.38049]
[1727259286648,0.3867,2628.3,2627.9,7.92421032]
[1727259286649,0.38047,2628.2,2627.9,7.92421032]
[1727259287051,0.38047,2628.2,2628.0,0.38049]
[1727259287441,0.38047,2628.2,2627.9,7.92421032]
[1727259287860,2.86712722,2628.3,2628.0,0.38049]
[1727259288153,2.86712722,2628.3,2628.1,0.38048]
[1727259288658,3.24757722,2628.3,2628.1,0.38048]
[1727259288850,0.76715,2628.3,2628.1,0.38048]
[1727259289052,0.3867,2628.3,2628.1,0.38048]
[1727259289251,0.76715,2628.3,2628.1,0.38048]
[1727259289452,0.76715,2628.3,2628.2,0.38046]
[1727259289453,0.3867,2628.3,2628.2,0.38046]
[1727259289851,0.76715,2628.3,2628.1,0.38047]
[1727259290153,2.48042722,2628.4,2628.3,0.38045]
[1727259290363,0.38044,2628.4,2628.3,2.38]
[1727259290657,2.48042722,2628.4,2628.3,2.76045]
[1727259291154,2.48042722,2628.4,2628.3,3.13005]
[1727259293057,2.48042722,2628.5,2628.4,0.38044]
[1727259293754,2.86084722,2628.5,2628.3,2.7496]
[1727259293957,0.38042,2628.5,2628.4,0.38044]
[1727259294156,7.83594159,2628.7,2628.4,6.73852703]
[1727259294358,4.4829,2628.7,2628.5,0.38041]
[1727259294655,0.75431,2628.7,2628.5,0.38041]
[1727259295056,3.35302159,2628.8,2628.7,0.38039]
[1727259295253,3.73921159,2628.9,2628.7,0.38039]
[1727259295650,0.76657,2628.9,2628.7,0.38039]
[1727259296562,3.73921159,2628.9,2628.7,0.38039]
[1727259297652,2.97264159,2628.8,2628.7,0.38039]
[1727259297853,3.35302159,2628.8,2628.4,6.73852703]
[1727259298158,2.48738433,2628.5,2628.4,7.11896703]
[1727259298862,0.38041,2628.6,2628.4,4.35852703]
[1727259299062,3.35305159,2628.6,2628.4,0.38043]
[1727259299252,2.97264159,2628.6,2628.4,0.38043]
[1727259300058,3.35305159,2628.6,2628.4,0.38043]
[1727259300266,2.97264159,2628.6,2628.3,0.7404]
[1727259300453,2.97264159,2628.6,2628.5,0.38042]
[1727259300656,3.35305159,2628.6,2628.4,0.38043]
[1727259300854,2.97264159,2628.6,2628.5,0.38042]
[1727259301662,0.3804,2628.7,2628.5,0.38042]
[1727259301663,2.86817519,2628.7,2628.5,0.38042]
[1727259302864,2.86816519,2628.8,2628.6,0.38041]
[1727259303168,2.86816519,2628.8,2628.7,0.3722]
[1727259303467,2.48777519,2628.8,2628.7,0.75259]
[1727259304164,5.46041678,2629.2,2628.8,0.38038]
[1727259304359,2.97264159,2629.2,2629.1,0.38033]